Cogmind - Beta 13 @@@ ROGUE MODE // 2024.03.31 @ 23:00:13 Player: Astrozal Result: Destroyed by Y-45 Defender with Beam Rifle Performance ------------- Evolutions (1) 500 Regions Visited (2) 400 Robots Destroyed (10) 50 Value Destroyed (255) 255 Prototype IDs (0) 0 Alien Tech Used (0) 0 Bonus (0) 0 TOTAL SCORE: 1205 Bonus ------- None Cogmind --------- Core Integrity 0/400 Matter 300/300 Energy 100/100 System Corruption 0% Temperature Cool (9) Movement Core (200) Ox3 Location -9/Materials Parts ------- > --- POWER (2) -------- (None) > --- PROPULSION (2) --- (None) > --- UTILITY (3) ------ Medium Storage Unit Power Shielding > --- WEAPON (2) ------- (None) > --- INVENTORY (10) --- Light Treads High-capacity Matter Pod (85) EM Pulse Gun Peak State ------------ > --- POWER ------------ Light Ion Engine Improved Ion Engine > --- PROPULSION ------- Aluminum Leg Aluminum Leg > --- UTILITY ---------- Medium Storage Unit Power Shielding Light Armor Plating > --- WEAPON ----------- Medium Laser Grenade Launcher > --- INVENTORY -------- High-capacity Matter Pod EM Pulse Gun [Rating: 10] Favorites ----------- Power Light Ion Engine Engine Light Ion Engine Propulsion Aluminum Leg Leg Aluminum Leg Utility Power Shielding Storage Medium Storage Unit Protection Power Shielding Weapon Medium Laser Energy Gun Medium Laser Launcher Grenade Launcher Build | -11 -10 -9 ------- Run | Yrd Mat Mat Slots Evolved 2 | . . 2 Power 1 | . . 1 Propulsion . | . . . Utility 1 | . . 1 Weapon . | . . . Parts Attached 10 | 5 3 2 Power 2 | 1 . 1 Engine 2 | 1 . 1 Core . | . . . Reactor . | . . . Propulsion 2 | 2 . . Treads . | . . . Leg 2 | 2 . . Wheel . | . . . Hover . | . . . Flight . | . . . Utility 3 | . 2 1 Device . | . . . Storage 1 | . . 1 Processor . | . . . Hackware . | . . . Protection 2 | . 2 . Artifact . | . . . Weapon 3 | 2 1 . Energy Gun 2 | 2 . . Energy Cannon . | . . . Ballistic Gun . | . . . Ballistic Cannon . | . . . Launcher 1 | . 1 . Special Weapon . | . . . Impact Weapon . | . . . Slashing Weapon . | . . . Piercing Weapon . | . . . Special Melee Weapon . | . . . Unidentified Prototypes . | . . . Parts Lost 5 | . . 5 Power 2 | . . 2 Propulsion 1 | . . 1 Utility 1 | . . 1 Weapon 1 | . . 1 Highest Loss Streak 5 | . . 5 To Critical Strikes . | . . . Average Slot Usage (%) 91 | . 98 86 Engine 16 | . 14 18 Leg 22 | . 28 18 Storage 6 | . . 11 Protection 22 | . 26 19 Energy Gun 13 | . 18 9 Launcher 8 | . 9 8 Naked Turns . | . . . Heaviest Build 29 | 7 12 29 Greatest Support 20 | 20 20 20 Greatest Overweight (x) 3 | . . 3 Average Overweight (x) . | . . 1 Largest Inventory Capacity 10 | 5 5 10 Average Capacity 7 | 5 5 9 Most Carried 4 | 1 4 3 Average Carried 1 | . 2 2 Final Capacity 10 | 5 5 10 Final Carried 4 | . 4 3 Class Distribution -------------------- 100% | Mutant Dominant Class ---------------- Mutant | -10/Materials Mutant | -9/Materials Resources | -11 -10 -9 ----------- Run | Yrd Mat Mat Matter Collected 426 | 250 18 158 Remotely . | . . . Salvage Created 228 | 41 96 91 Parts 18 | . 11 7 Haulers Intercepted . | . . . Recyclers Shooed . | . . . Parts Field Recycled . | . . . Retrieved Matter . | . . . Parts Self-Destructed . | . . . Prevented . | . . . Kills | -11 -10 -9 ------- Run | Yrd Mat Mat Combat Hostiles Destroyed 8 | 1 5 2 Guns 3 | 1 2 . AOE 5 | . 3 2 Classes Destroyed 4 | 1 2 1 Operator 1 | . 1 . Watcher 1 | . . 1 Swarmer 3 | . 3 . Grunt 5 | 1 2 2 Best Kill Streak 4 | 1 4 2 Combat Bots Only 3 | 1 3 2 Max Kills in Single Turn 3 | 1 3 2 Gunslinging . | . . . Exploded 2 | . 2 2 Melee . | . . . Uniques/NPCs Destroyed . | . . . Combat | -11 -10 -9 -------- Run | Yrd Mat Mat Hostile Shots Fired 88 | 3 11 74 Missed 21 | . 3 18 Damage Taken 1116 | 35 92 989 Core 432 | 12 7 413 Absorbed by Shields . | . . . Redirected to Shielding 43 | . . 43 Core Remaining (%) 93 | 95 92 . Volleys Fired 15 | 2 5 8 Largest 2 | 2 2 2 Hottest 90 | 90 80 80 Shots Fired 26 | 4 10 12 Gun 17 | 4 5 8 Cannon . | . . . Launcher 9 | . 5 4 Special . | . . . Kinetic . | . . . Thermal 15 | 2 5 8 Explosive 9 | . 5 4 Electromagnetic 2 | 2 . . Robot Hit Streak 4 | 3 4 4 Robot Miss Streak 4 | 1 2 4 Penetration Max . | . . . Secondary Targets . | . . . Shots Hit Robots 15 | 3 5 7 Core Hits 18 | 2 8 8 Critical Kills . | . . . Critical Parts Destroyed . | . . . Critical Strikes . | . . . Melee Attacks . | . . . Impact . | . . . Slashing . | . . . Piercing . | . . . Sneak Attacks . | . . . Combat Hostiles . | . . . Follow-up Attacks . | . . . Damage Inflicted 548 | 37 254 257 Guns 148 | 37 50 61 Cannons . | . . . Explosions 390 | . 204 186 Melee . | . . . Ramming 10 | . . 10 Kinetic . | . . . Thermal 136 | 25 50 61 Explosive 390 | . 204 186 Electromagnetic 12 | 12 . . Impact . | . . . Slashing . | . . . Piercing . | . . . Highest Corruption . | . . . Average Corruption . | . . . Corruption Purged . | . . . Corruption Blocked . | . . . Overload Shots . | . . . Overflow Damage 2 | . . 2 Projectiles . | . . . Explosions 2 | . . 2 Melee . | . . . Knockbacks 1 | . . 1 Impact 1 | . . 1 Kinetic . | . . . Secondary . | . . . Self-Inflicted Damage 47 | . 12 35 Shots 4 | . 1 3 Rammed 6 | . . 6 Targets Rammed 8 | . . 8 Kicked 2 | . . 2 Crushed . | . . . Highest Temperature 208 | 42 102 208 Average Temperature 67 | 24 46 90 Received Heat Transfer 327 | 18 36 273 Siege Activations . | . . . Robots Corrupted . | . . . Combat Hostiles . | . . . Parts Fried . | . . . Impact Corruptions . | . . . Robots Melted . | . . . Combat Hostiles . | . . . Parts Melted 1 | . . 1 Heat Transferred 407 | 74 148 185 Parts Sabotaged . | . . . Parts Stolen . | . . . Parts Stripped . | . . . Power Chain Reactions . | . . . Alert | -11 -10 -9 ------- Run | Yrd Mat Mat Peak Influence 180 | 20 180 177 Initial 76 | . 13 76 Average 80 | 4 92 109 Maximum Alert Level . | . . . Low Security (%) 100 | 100 100 100 Level 1 . | . . . Level 2 . | . . . Level 3 . | . . . Level 4 . | . . . Level 5 . | . . . High Security . | . . . Max Security . | . . . Squads Dispatched 2 | . 1 1 Investigation 1 | . 1 . Extermination . | . . . Reinforcement 1 | . . 1 Assault . | . . . Garrison . | . . . Intercept . | . . . Searches Triggered . | . . . Construction Impeded . | . . . Haulers Reinforced . | . . . Active Scanning Responses . | . . . Cargo Convoy Interrupts . | . . . Stealth | -11 -10 -9 --------- Run | Yrd Mat Mat Distress Signals 1 | . . 1 Communications Jammed . | . . . Distress Signals . | . . . Times Spotted 14 | 1 6 7 Peak Tracking Total 4 | 1 4 4 Tactical Retreats . | . . . Traps | -11 -10 -9 ------- Run | Yrd Mat Mat Traps Triggered 1 | . 1 . Indirectly . | . . . Trap Hack Attempts . | . . . Triggered . | . . . Disarmed . | . . . Reprogrammed . | . . . Reused . | . . . Traps Extracted . | . . . Installed . | . . . Triggered . | . . . Machines | -11 -10 -9 ---------- Run | Yrd Mat Mat Machines Disabled 1 | . . 1 Max in Single Turn 1 | . . 1 Machines Repaired . | . . . Machines Dismantled . | . . . Machines Sabotaged . | . . . Overloaded Fab Kills . | . . . Hacking | -11 -10 -9 --------- Run | Yrd Mat Mat Machines Accessed 2 | . 1 1 Terminals 2 | . 1 1 Fabricators . | . . . Repair Stations . | . . . Recycling Units . | . . . Scanalyzers . | . . . Garrison Access . | . . . Total Hacks 2 | . 1 1 Successful 2 | . 1 1 Failed . | . . . Catastrophic . | . . . Database Lockouts . | . . . Manual . | . . . Terminals 2 | . 1 1 Fabricators . | . . . Repair Stations . | . . . Recycling Units . | . . . Scanalyzers . | . . . Garrison Access . | . . . Terminal Hacks 2 | . 1 1 Record 1 | . . 1 Emergency Access Points 1 | . 1 . Fabricator Hacks . | . . . Repair Station Hacks . | . . . Recycling Unit Hacks . | . . . Scanalyzer . | . . . Garrison Access Hacks . | . . . Unauthorized Hacks . | . . . Terminals . | . . . Fabricators . | . . . Repair Stations . | . . . Recycling Units . | . . . Scanalyzers . | . . . Garrison Access . | . . . Data Cores Recovered . | . . . Used . | . . . Hacking Detections 1 | . 1 . Full Trace Events . | . . . Feedback Events . | . . . Feedback Blocked . | . . . Robot Schematics Acquired . | . . . Robots Built . | . . . Authchips . | . . . Time . | . . . Total Robot Build Rating . | . . . Part Schematics Acquired . | . . . Parts Built . | . . . Authchips . | . . . Time . | . . . Total Part Build Rating . | . . . Parts Repaired . | . . . Time . | . . . Parts Recycled . | . . . Recycled Matter . | . . . Retrieved Matter . | . . . Retrieved Components . | . . . Parts Scanalyzed . | . . . Part Schematics Acquired . | . . . Parts Damaged . | . . . Bothacking | -11 -10 -9 ------------ Run | Yrd Mat Mat Used RIF Installer . | . . . Robots Hacked . | . . . Non-combat . | . . . Combat . | . . . Robot Hacks Applied . | . . . Relay Couplers Released . | . . . Fabnet Peak Effective % . | . . . Robots Rewired . | . . . Allies Hacked . | . . . Hacks Repelled . | . . . Allies | -11 -10 -9 -------- Run | Yrd Mat Mat Total Allies . | . . . Largest Group . | . . . Highest-Rated Group . | . . . Highest-Rated Ally . | . . . Total Orders . | . . . Ally Attacks . | . . . Total Damage . | . . . Kills . | . . . Allies Corrupted . | . . . Allies Melted . | . . . Intel | -11 -10 -9 ------- Run | Yrd Mat Mat Robot Analysis Total . | . . . Derelict Logs Recovered . | . . . Drone Launches . | . . . Drone Recoveries . | . . . Exploration | -11 -10 -9 ------------- Run | Yrd Mat Mat Turns Passed 494 | 109 174 211 Spaces Moved 309 | 94 126 89 Core 30 | 25 . 5 Treads . | . . . Legs 279 | 69 126 84 Wheels . | . . . Hover . | . . . Flight . | . . . Fastest Speed 50 | 50 120 190 Average Speed 135 | 101 120 192 Slowest Speed 260 | 120 120 260 Overloaded Moves . | . . . Propulsion Burnouts . | . . . Robots Hopped . | . . . Cave-ins Triggered . | . . . Exploration Rate (%) 14 | 5 25 13 Regions Visited 2 Branch Regions . Pre-discovered Areas . | . . . Known Exits Taken . | . . . Unknown Exits Taken 2 | 1 1 . Scrap Searched . | . . . Spaces Dug . | . . . Terrain Destroyed 33 | . 21 12 Melee . | . . . Projectile . | . . . AOE 33 | . 21 12 Terrain Rammed . | . . . Walls Destroyed . | . . . Machines Disabled . | . . . Actions | -11 -10 -9 --------- Run | Yrd Mat Mat Total 347 | 101 138 108 Wait . | . . . Move 307 | 93 125 89 Hop . | . . . Pick Up 6 | 1 4 1 Fast Attach 6 | 4 2 . Attach 4 | 1 1 2 Detach 1 | . 1 . Swap . | . . . Drop . | . . . Fire 15 | 2 5 8 Melee . | . . . Ram 6 | . . 6 Kick 2 | . . 2 Crush . | . . . Escape Stasis . | . . . Rewire . | . . . Trap . | . . . Miscellaneous . | . . . Route ------- -11/Scrapyard -10/Materials -9/Materials History --------- Turn | Location | Event 2 | -11/Scrapyard | Met Revision 17 75 | -11/Scrapyard | Discovered new exit (range 8) 110 | -11/Scrapyard | Entered Materials 233 | -10/Materials | Discovered new exit (range 16) 284 | -10/Materials | Entered another Materials area 284 | -9/Materials | Evolved 2 slots: Power x1, Utility x1 306 | -9/Materials | Build established: Mutant 482 | -9/Materials | Core integrity fell below 50% 492 | -9/Materials | Core integrity fell below 20% 495 | -9/Materials | Destroyed by Y-45 Defender with Beam Rifle Last Messages --------------- Lgt. Ion Engine destroyed. U-05 Engineer lays Concrete. Med. Laser severed. U-05 Engineer lays Concrete. Imp. Ion Engine destroyed. U-05 Engineer lays Concrete. Aluminum Leg destroyed. U-05 Engineer lays Concrete. Slammed into L-31 Rogue. U-05 Engineer lays Concrete. U-05 Engineer builds a Wall. U-05 Engineer lays Concrete. Slammed into L-31 Rogue. U-05 Engineer lays Concrete. U-05 Engineer builds a Wall. Slammed into L-31 Rogue. U-05 Engineer lays Concrete. Slammed into L-31 Rogue. L-31 Rogue knocked back. Slammed into L-31 Rogue. Map ----- +----------------------------------------------------+ | # #??????????????????????????????????????? | | # ##?????????????????????????????????????? | | ##?????????????????????????????????????? | | ###### ##?????????????????????????????????????? | | + ! ########???????????????????????????????? | | ] # * ####????????????????????????????? | | =! / # #????????????????????????????? | | ####### #????????????????????????????? | | ??????### ## #????????????????????????????? | | ??????? ## ##+##+##???????????????????????????? | | ????? """ ## ## ??????????????????????????? | | ????# """ # # """ ?????????? ??????????????? | | ????# """ # # """ ""T??????? ??????????????? | | ????# # """ """??????? ???????????????? | | ????# """ # #?? ????????????????? | | ???????"" ##= #################+#????????????????? | | ????????" ##! = ####?????????????? | | ???????? # [ +?????????????? | | ????????### T" #????????????????? | | ???????? ### = #????????????????? | | ??? ! [ #????????????????? | | ?? ! #????????????????? | | ???## # g #????????????????? | | ????## ??# / ####Yg #????????????????? | | ?????# ???# ^ T??# l #????????????????? | | ?????#????# ^ """ ##?# @ #????????????????? | | ??????????# ^ """ "??# #????????????????? | | ??????????# """ Y"?# #????????????????? | | ??????????# ""?# +????????????????? | | ??????????# #??# #????????????????? | | ??????????# #??# #????????????????? | | ??????????##+####+###??# +????????????????? | | ??????????????????????? #????????????????? | | ???????????????????????##+#######????????????????? | | ?????????????????????????????????????????????????? | | ?????????????????????????????????????????????????? | | ?????????????????????????????????????????????????? | | ?????????????????????????????????????????????????? | | ?????????????????????????????????????????????????? | | ?????????????????????????????????????????????????? | | | | | | | | | | | | | | | | | | | | | +----------------------------------------------------+ Best States ------------- Heat Dissipation 28 Energy Generation 17 Energy Capacity 290 Matter Stores 300 Matter Capacity 300 Sight Range 16 Terrain Scan Density 10 Armor Coverage 150 Power Shielding 33 Evasion (%) 55 Item Schematics ----------------- None Robot Schematics ------------------ None Fabricated ------------ Nothing Alien Tech Used ----------------- None Achievements -------------- None Challenges ------------ None Game ------ Seed MobileCooledLog Manual? 0 Play Time 00:14:24 Cumulative 1.2 hours Start 2024.03.31 @ 22:43:27 End 2024.03.31 @ 23:00:13 Sessions 1 Manual Loads 0 Difficulty Rogue Special Mode None Game No. 2 Rogue 2 Adventurer 0 Explorer 0 Win Type - Total 0 Types 0/0/0/0/0/0/0/0/0 Lore% 0 Gallery% 2 Achievement% 3 Wizard Run 0 Options --------- Layout 1 ASCII 1 Keyboard 0 Movement Arrows Keybinds 0 Fullscreen 1 Font 16/SmallcapsGlow Map View 50x40 Zoom Use 0% Tactical HUD 0 Map Filters NONE Filters NONE Steam SD RUN: 1938580e-9e29-4b74-b3bb-3d5271f36b35